fUSD/lending_fUSD_20240502
["ID","MTS","AMOUNT","RATE_DAILY","PERIOD"]
[325286153,1714681878002,-500.0,0.00030958,2]
[325286154,1714681878011,-500.0,0.00030958,2]
[325286155,1714681878020,-1075.76,0.00030958,2]
[325286156,1714681878029,-500.0,0.00030958,2]
[325286157,1714681878038,-500.0,0.00030958,2]
[325286158,1714681878046,-500.0,0.00030958,2]
[325286159,1714681878055,-500.0,0.00030958,2]
[325286160,1714681878064,-500.0,0.00030958,2]
[325286161,1714681878073,-1032.35,0.00030958,2]
[325286162,1714681878081,-500.0,0.00030958,2]
[325286163,1714681878090,-500.0,0.00030958,2]
[325286164,1714681878099,-500.0,0.00030958,2]
[325286165,1714681878107,-937.69,0.00030958,2]
[325286166,1714681878117,-500.0,0.00030958,2]
[325286167,1714681878126,-423.75982789,0.00030958,2]
[325286168,1714681878134,-846.89,0.00030958,2]
[325286169,1714681878143,-500.0,0.00030958,2]
[325286170,1714681878152,-500.0,0.00030958,2]
[325286171,1714681878161,-535.02384864,0.00030958,2]
[325286172,1714681878169,-500.0,0.00030958,2]
[325286173,1714681878178,-500.0,0.00030958,2]
[325286174,1714681878187,-500.0,0.00030958,2]
[325286175,1714681878195,-803.59,0.00030958,2]
[325286176,1714681878204,-500.0,0.00030958,2]
[325286177,1714681878213,-1599.52,0.00030958,2]
[325286178,1714681878223,-150.0,0.00030958,2]
[325286179,1714681878232,-500.0,0.00030958,2]
[325286180,1714681878242,-661.82,0.00030958,2]
[325286181,1714681878252,-500.0,0.00030958,2]
[325286182,1714681878261,-500.0,0.00030958,2]
[325286183,1714681878271,-500.0,0.00030958,2]
[325286184,1714681878280,-798.63,0.00030958,2]
[325286185,1714681878289,-529.69847247,0.00030958,2]
[325286186,1714681878299,-1721.32,0.00030958,2]
[325286187,1714681878308,-500.0,0.00030958,2]
[325286188,1714681878317,-500.0,0.00030958,2]
[325286189,1714681878328,-830.1,0.00030958,2]
[325286190,1714681878337,-861.13,0.00030958,2]
[325286191,1714681878347,-500.0,0.00030958,2]
[325286192,1714681878357,-701.64,0.00030958,2]
[325286193,1714681878367,-680.31,0.00030958,2]
[325286194,1714681878377,-766.15,0.00030958,2]
[325286195,1714681878387,-621.41,0.00030958,2]
[325286196,1714681878396,-500.0,0.00030958,2]
[325286197,1714681878406,-1039.89,0.00030958,2]
[325286198,1714681878415,-861.41,0.00030958,2]
[325286199,1714681878424,-500.0,0.00030958,2]
[325286200,1714681878434,-500.0,0.00030958,2]
[325286201,1714681878444,-500.0,0.00030958,2]
[325286202,1714681878458,-500.0,0.00030958,2]
[325286203,1714681878468,-500.0,0.00030958,2]
[325286204,1714681878477,-509.60792353,0.00030958,2]
[325286205,1714681878487,-500.0,0.00030958,2]
[325286206,1714681878496,-500.0,0.00030958,2]
[325286207,1714681878505,-500.0,0.00030958,2]
[325286208,1714681878514,-500.0,0.00030958,2]
[325286209,1714681878522,-589.67,0.00030958,2]
[325286210,1714681878534,-500.0,0.00030958,2]
[325286211,1714681878545,-500.0,0.00030958,2]
[325286212,1714681878554,-555.79,0.00030958,2]
[325286213,1714681878563,-1035.93,0.00030958,2]
[325286214,1714681878572,-688.76,0.00030958,2]
[325286215,1714681878582,-500.0,0.00030958,2]
[325286216,1714681878592,-500.0,0.00030958,2]
[325286217,1714681878601,-1405.22,0.00030958,2]
[325286218,1714681878611,-500.0,0.00030958,2]
[325286219,1714681878620,-500.0,0.00030958,2]
[325286220,1714681878629,-1110.41,0.00030958,2]
[325286221,1714681878638,-736.93,0.00030958,2]
[325286222,1714681878648,-500.0,0.00030958,2]
[325286223,1714681878657,-888.05,0.00030958,2]
[325286224,1714681878666,-594.87,0.00030958,2]
[325286225,1714681878675,-346.15668655,0.00030958,2]
[325286226,1714681878685,-846.25,0.00030958,2]
[325286227,1714681878694,-500.0,0.00030958,2]
[325286228,1714681878703,-500.0,0.00030958,2]
[325286229,1714681878712,-1199.19,0.00030958,2]
[325286230,1714681878721,-500.0,0.00030958,2]
[325286231,1714681878731,-1654.42,0.00030958,2]
[325286232,1714681878739,-500.0,0.00030958,2]
[325286233,1714681878749,-500.0,0.00030958,2]
[325286234,1714681878758,-500.0,0.00030958,2]
[325286235,1714681878767,-500.0,0.00030958,2]
[325286236,1714681878776,-500.0,0.00030958,2]
[325286237,1714681878786,-1260.51,0.00030958,2]
[325286238,1714681878795,-688.04,0.00030958,2]
[325286239,1714681878805,-500.0,0.00030958,2]
[325286240,1714681878814,-500.0,0.00030958,2]
[325286241,1714681878823,-500.0,0.00030958,2]
[325286242,1714681878833,-500.0,0.00030958,2]
[325286243,1714681878842,-500.0,0.00030958,2]
[325286244,1714681878852,-706.41,0.00030958,2]
[325286245,1714681878861,-500.0,0.00030958,2]
[325286246,1714681878871,-774.6,0.00030958,2]
[325286247,1714681878880,-1084.51,0.00030958,2]
[325286248,1714681878890,-763.75,0.00030958,2]
[325286249,1714681878900,-606.54185003,0.00030958,2]
[325286250,1714681878910,-500.0,0.00030958,2]
[325286251,1714681878920,-898.3,0.00030958,2]
[325286252,1714681878930,-361.30213082,0.00030958,2]
[325286253,1714681878940,-1480.74,0.00030958,2]
[325286254,1714681878951,-1325.42,0.00030958,2]
[325286255,1714681878962,-500.0,0.00030958,2]
[325286256,1714681878972,-500.0,0.00030958,2]
[325286257,1714681878982,-500.0,0.00030958,2]
[325286258,1714681878992,-1057.69,0.00030958,2]
[325286259,1714681879003,-895.75,0.00030958,2]
[325286260,1714681879013,-507.95,0.00030958,2]
[325286261,1714681879023,-500.0,0.00030958,2]
[325286262,1714681879033,-500.0,0.00030958,2]
[325286263,1714681879042,-500.0,0.00030958,2]
[325286264,1714681879052,-1491.45,0.00030958,2]
[325286265,1714681879062,-500.0,0.00030958,2]
[325286266,1714681879071,-500.0,0.00030958,2]
[325286267,1714681879081,-748.48,0.00030958,2]
[325286268,1714681879091,-500.0,0.00030958,2]
[325286269,1714681879107,-1885.05,0.00030958,2]
[325286270,1714681879117,-500.0,0.00030958,2]
[325286271,1714681879126,-885.8,0.00030958,2]
[325286272,1714681879136,-500.0,0.00030958,2]
[325286273,1714681879145,-1069.17,0.00030958,2]
[325286274,1714681879155,-500.0,0.00030958,2]
[325286275,1714681879165,-500.0,0.00030958,2]
[325286276,1714681879175,-500.0,0.00030958,2]
[325286277,1714681879184,-1150.47,0.00030958,2]
[325286278,1714681879193,-500.0,0.00030958,2]
[325286279,1714681879203,-779.11,0.00030958,2]
[325286280,1714681879213,-500.0,0.00030958,2]
[325286281,1714681879223,-1428.67,0.00030958,2]
[325286282,1714681879233,-677.23,0.00030958,2]
[325286283,1714681879243,-900.69,0.00030958,2]
[325286284,1714681879253,-500.0,0.00030958,2]
[325286285,1714681879263,-500.0,0.00030958,2]
[325286286,1714681879272,-500.0,0.00030958,2]
[325286287,1714681879282,-1421.46,0.00030958,2]
[325286288,1714681879291,-1115.13,0.00030958,2]
[325286289,1714681879301,-500.0,0.00030958,2]
[325286290,1714681879311,-695.27,0.00030958,2]
[325286291,1714681879321,-1090.94,0.00030958,2]
[325286292,1714681879331,-500.0,0.00030958,2]
[325286293,1714681879341,-500.0,0.00030958,2]
[325286294,1714681879350,-500.0,0.00030958,2]
[325286295,1714681879361,-1420.87,0.00030958,2]
[325286296,1714681879371,-500.0,0.00030958,2]
[325286297,1714681879381,-500.0,0.00030958,2]
[325286298,1714681879390,-848.23,0.00030958,2]
[325286299,1714681879400,-1210.76,0.00030958,2]
[325286300,1714681879409,-500.0,0.00030958,2]
[325286301,1714681879419,-500.0,0.00030958,2]
[325286302,1714681879429,-500.0,0.00030958,2]
[325286303,1714681879442,-500.0,0.00030958,2]
[325286304,1714681879451,-1726.89,0.00030958,2]
[325286305,1714681879461,-844.66,0.00030958,2]
[325286306,1714681879470,-994.7,0.00030958,2]
[325286307,1714681879481,-500.0,0.00030958,2]
[325286308,1714681879490,-500.0,0.00030958,2]
[325286309,1714681879500,-500.0,0.00030958,2]
[325286310,1714681879510,-500.0,0.00030958,2]
[325286311,1714681879520,-523.95,0.00030958,2]
[325286312,1714681879531,-500.0,0.00030958,2]
[325286313,1714681879540,-500.0,0.00030958,2]
[325286314,1714681879550,-1714.4,0.00030958,2]
[325286315,1714681879559,-1709.99,0.00030958,2]
[325286316,1714681879569,-1409.69,0.00030958,2]
[325286317,1714681879579,-1061.47,0.00030958,2]
[325286318,1714681879588,-1389.17,0.00030958,2]
[325286319,1714681879598,-500.0,0.00030958,2]
[325286320,1714681879607,-2407.42,0.00030958,2]
[325286321,1714681879619,-883.25,0.00030958,2]
[325286322,1714681879628,-500.0,0.00030958,2]
[325286323,1714681879637,-500.0,0.00030958,2]
[325286324,1714681879647,-1493.44,0.00030958,2]
[325286325,1714681879657,-500.0,0.00030958,2]
[325286326,1714681879667,-500.0,0.00030958,2]
[325286327,1714681879677,-766.45,0.00030958,2]
[325286328,1714681879686,-500.0,0.00030958,2]
[325286329,1714681879696,-500.0,0.00030958,2]
[325286330,1714681879705,-1757.05,0.00030958,2]
[325286331,1714681879715,-1978.57,0.00030958,2]
[325286332,1714681879725,-500.0,0.00030958,2]
[325286333,1714681879735,-500.0,0.00030958,2]
[325286334,1714681879745,-500.0,0.00030958,2]
[325286335,1714681879755,-1290.88,0.00030958,2]
[325286336,1714681879765,-1218.61,0.00030958,2]
[325286337,1714681879774,-764.69,0.00030958,2]
[325286338,1714681879784,-500.0,0.00030958,2]
[325286339,1714681879793,-500.0,0.00030958,2]
[325286340,1714681879803,-886.86,0.00030958,2]
[325286341,1714681879812,-500.0,0.00030958,2]
[325286342,1714681879822,-1751.56,0.00030958,2]
[325286343,1714681879832,-500.0,0.00030958,2]
[325286344,1714681879842,-500.0,0.00030958,2]
[325286345,1714681879852,-2304.23,0.00030958,2]
[325286346,1714681879862,-712.15,0.00030958,2]
[325286347,1714681879871,-1133.62,0.00030958,2]
[325286348,1714681879882,-605.5,0.00030958,2]
[325286349,1714681879892,-500.0,0.00030958,2]
[325286350,1714681879904,-1129.9,0.00030958,2]
[325286351,1714681879913,-500.0,0.00030958,2]
[325286352,1714681879923,-1511.43,0.00030958,2]
[325286353,1714681879934,-500.0,0.00030958,2]
[325286354,1714681879944,-1782.71,0.00030958,2]
[325286355,1714681879954,-880.75,0.00030958,2]
[325286356,1714681879966,-500.0,0.00030958,2]
[325286357,1714681879978,-1689.66,0.00030958,2]
[325286358,1714681879988,-640.23,0.00030958,2]
[325286359,1714681879998,-882.96,0.00030958,2]
[325286360,1714681880007,-500.0,0.00030958,2]
[325286361,1714681880018,-864.21,0.00030958,2]
[325286362,1714681880028,-500.0,0.00030958,2]
[325286363,1714681880039,-1196.36,0.00030958,2]
[325286364,1714681880049,-1565.42,0.00030958,2]
[325286365,1714681880059,-500.0,0.00030958,2]
[325286366,1714681880069,-966.91,0.00030958,2]
[325286367,1714681880079,-500.0,0.00030958,2]
[325286368,1714681880089,-780.71,0.00030958,2]
[325286369,1714681880099,-1140.23,0.00030958,2]
[325286370,1714681880109,-500.0,0.00030958,2]
[325286371,1714681880120,-500.0,0.00030958,2]
[325286372,1714681880130,-500.0,0.00030958,2]
[325286373,1714681880140,-2133.55,0.00030958,2]
[325286374,1714681880150,-500.0,0.00030958,2]
[325286375,1714681880160,-500.0,0.00030958,2]
[325286376,1714681880170,-500.0,0.00030958,2]
[325286377,1714681880180,-500.0,0.00030958,2]
[325286378,1714681880190,-500.0,0.00030958,2]
[325286379,1714681880200,-500.0,0.00030958,2]
[325286380,1714681880210,-1081.32,0.00030958,2]
[325286381,1714681880220,-1586.27,0.00030958,2]
[325286382,1714681880230,-500.0,0.00030958,2]
[325286383,1714681880240,-716.34,0.00030958,2]
[325286384,1714681880250,-2018.63,0.00030958,2]
[325286385,1714681880261,-500.0,0.00030958,2]
[325286386,1714681880270,-516.1277797,0.00030958,2]
[325286387,1714681880280,-500.0,0.00030958,2]
[325286388,1714681880290,-500.0,0.00030958,2]
[325286389,1714681880299,-839.27,0.00030958,2]
[325286390,1714681880309,-637.38,0.00030958,2]
[325286391,1714681880319,-500.0,0.00030958,2]
[325286392,1714681880328,-500.0,0.00030958,2]
[325286393,1714681880338,-500.0,0.00030958,2]
[325286394,1714681880348,-500.0,0.00030958,2]
[325286395,1714681880358,-500.0,0.00030958,2]
[325286396,1714681880368,-500.0,0.00030958,2]
[325286397,1714681880378,-500.0,0.00030958,2]
[325286398,1714681880388,-500.0,0.00030958,2]
[325286399,1714681880398,-651.28,0.00030958,2]
[325286400,1714681880407,-821.81,0.00030958,2]
[325286401,1714681880417,-823.24,0.00030958,2]
[325286402,1714681880426,-500.0,0.00030958,2]
[325286403,1714681880436,-613.2,0.00030958,2]
[325286404,1714681880448,-1809.06,0.00030958,2]
[325286405,1714681880460,-1001.15,0.00030958,2]
[325286406,1714681880469,-500.0,0.00030958,2]
[325286407,1714681880479,-938.55,0.00030958,2]
[325286408,1714681880488,-1127.5,0.00030958,2]
[325286409,1714681880499,-500.0,0.00030958,2]
[325286410,1714681880509,-500.0,0.00030958,2]
[325286411,1714681880519,-1078.61,0.00030958,2]
[325286412,1714681880529,-537.89,0.00030958,2]
[325286413,1714681880540,-500.0,0.00030958,2]
[325286414,1714681880551,-500.0,0.00030958,2]
[325286415,1714681880561,-2492.63,0.00030958,2]
[325286416,1714681880571,-649.55723643,0.00030958,2]
[325286417,1714681880580,-1089.62,0.00030958,2]
[325286418,1714681880590,-584.1,0.00030958,2]
[325286419,1714681880600,-500.0,0.00030958,2]
[325286420,1714681880610,-500.0,0.00030958,2]
[325286421,1714681880620,-500.0,0.00030958,2]
[325286422,1714681880630,-1000.0,0.00030958,2]
[325286423,1714681880640,-500.0,0.00030958,2]
[325286424,1714681880650,-500.0,0.00030958,2]
[325286425,1714681880660,-1604.21,0.00030958,2]
[325286426,1714681880671,-1488.78,0.00030958,2]
[325286427,1714681880681,-523.83,0.00030958,2]
[325286428,1714681880691,-1248.91,0.00030958,2]
[325286429,1714681880701,-1353.74,0.00030958,2]
[325286430,1714681880711,-844.58,0.00030958,2]
[325286431,1714681880720,-500.0,0.00030958,2]
[325286432,1714681880730,-1049.28,0.00030958,2]
[325286433,1714681880740,-1084.31,0.00030958,2]
[325286434,1714681880750,-1049.57,0.00030958,2]
[325286435,1714681880760,-500.0,0.00030958,2]
[325286436,1714681880770,-978.93,0.00030958,2]
[325286437,1714681880780,-1581.09,0.00030958,2]
[325286438,1714681880789,-766.9,0.00030958,2]
[325286439,1714681880799,-1027.42,0.00030958,2]
[325286440,1714681880809,-500.0,0.00030958,2]
[325286441,1714681880818,-500.0,0.00030958,2]
[325286442,1714681880828,-500.0,0.00030958,2]
[325286443,1714681880842,-568.18,0.00030958,2]
[325286444,1714681880854,-500.0,0.00030958,2]
[325286445,1714681880865,-929.72,0.00030958,2]
[325286446,1714681880875,-1071.74,0.00030958,2]
[325286447,1714681880884,-500.0,0.00030958,2]
[325286448,1714681880895,-1664.88,0.00030958,2]
[325286449,1714681880904,-616.39,0.00030958,2]
[325286450,1714681880914,-500.0,0.00030958,2]
[325286451,1714681880924,-992.57,0.00030958,2]
[325286452,1714681880934,-636.51,0.00030958,2]
[325286453,1714681880944,-1136.49,0.00030958,2]
[325286454,1714681880954,-857.9,0.00030958,2]
[325286455,1714681880964,-500.0,0.00030958,2]
[325286456,1714681880974,-865.54,0.00030958,2]
[325286457,1714681880983,-596.65,0.00030958,2]
[325286458,1714681880993,-1156.06,0.00030958,2]
[325286459,1714681881002,-977.98,0.00030958,2]
[325286460,1714681881012,-606.92,0.00030958,2]
[325286461,1714681881022,-500.0,0.00030958,2]
[325286462,1714681881032,-500.0,0.00030958,2]
[325286463,1714681881042,-1388.97,0.00030958,2]
[325286464,1714681881052,-500.0,0.00030958,2]
[325286465,1714681881314,-822.86,0.00030958,2]
[325286466,1714681881327,-1470.8,0.00030958,2]
[325286467,1714681881337,-500.0,0.00030958,2]
[325286468,1714681881347,-912.76,0.00030958,2]
[325286469,1714681881356,-557.85,0.00030958,2]
[325286470,1714681881367,-500.0,0.00030958,2]
[325286471,1714681881376,-560.26,0.00030958,2]
[325286472,1714681881386,-1085.75,0.00030958,2]
[325286473,1714681881395,-584.54,0.00030958,2]
[325286474,1714681881405,-500.0,0.00030958,2]
[325286475,1714681881414,-500.0,0.00030958,2]
[325286476,1714681881423,-1644.66,0.00030958,2]
[325286477,1714681881433,-1241.33,0.00030958,2]
[325286478,1714681881446,-2286.77,0.00030958,2]
[325286479,1714681881457,-630.29,0.00030958,2]
[325286480,1714681881466,-500.0,0.00030958,2]
[325286481,1714681881475,-500.0,0.00030958,2]
[325286482,1714681881486,-500.0,0.00030958,2]
[325286483,1714681881495,-500.0,0.00030958,2]
[325286484,1714681881505,-874.27,0.00030958,2]
[325286485,1714681881514,-1476.58,0.00030958,2]
[325286486,1714681881526,-1160.78,0.00030958,2]
[325286487,1714681881535,-180.43970599,0.00030958,2]
[325286488,1714681881545,-699.4,0.00030958,2]
[325286489,1714681881555,-2403.64,0.00030958,2]
[325286490,1714681881564,-500.0,0.00030958,2]
[325286491,1714681881574,-500.0,0.00030958,2]
[325286492,1714681881584,-500.0,0.00030958,2]
[325286493,1714681881593,-2604.46,0.00030958,2]
[325286494,1714681881603,-500.0,0.00030958,2]
[325286495,1714681881614,-716.75,0.00030958,2]
[325286496,1714681881623,-500.0,0.00030958,2]
[325286497,1714681881633,-839.54,0.00030958,2]
[325286498,1714681881643,-500.0,0.00030958,2]
[325286499,1714681881653,-518.33,0.00030958,2]
[325286500,1714681881662,-1678.44,0.00030958,2]
[325286501,1714681881671,-500.0,0.00030958,2]
[325286502,1714681881681,-935.64,0.00030958,2]
[325286503,1714681881690,-500.0,0.00030958,2]
[325286504,1714681881699,-500.0,0.00030958,2]
[325286505,1714681881709,-500.0,0.00030958,2]
[325286506,1714681881719,-621.54,0.00030958,2]
[325286507,1714681881728,-391.1624403,0.00030958,2]
[325286508,1714681881737,-500.0,0.00030958,2]
[325286509,1714681881747,-1568.61,0.00030958,2]
[325286510,1714681881756,-1182.01,0.00030958,2]
[325286511,1714681881766,-500.0,0.00030958,2]
[325286512,1714681881775,-500.0,0.00030958,2]
[325286513,1714681881785,-2702.39,0.00030958,2]
[325286514,1714681881794,-572.72,0.00030958,2]
[325286515,1714681881803,-1249.99,0.00030958,2]
[325286516,1714681881813,-542.67,0.00030958,2]
[325286517,1714681881822,-500.0,0.00030958,2]
[325286518,1714681881831,-500.0,0.00030958,2]
[325286519,1714681881841,-957.84,0.00030958,2]
[325286520,1714681881851,-500.0,0.00030958,2]
[325286521,1714681881861,-500.0,0.00030958,2]
[325286522,1714681881871,-500.0,0.00030958,2]
[325286523,1714681881882,-1588.6,0.00030958,2]
[325286524,1714681881893,-500.0,0.00030958,2]
[325286525,1714681881904,-574.56,0.00030958,2]
[325286526,1714681881913,-500.0,0.00030958,2]
[325286527,1714681881922,-500.0,0.00030958,2]
[325286528,1714681881932,-500.0,0.00030958,2]
[325286529,1714681881941,-970.25,0.00030958,2]
[325286530,1714681881951,-1324.87,0.00030958,2]
[325286531,1714681881960,-975.24,0.00030958,2]
[325286532,1714681881969,-500.0,0.00030958,2]
[325286533,1714681881979,-500.0,0.00030958,2]
[325286534,1714681881988,-500.0,0.00030958,2]
[325286535,1714681881997,-6698.76,0.00030958,2]
[325286536,1714681882006,-151.0,0.00030958,7]
[325286537,1714681882016,-242.866369,0.00030958,7]
[325286538,1714681882026,-500.0,0.00030958,2]
[325286539,1714681882036,-500.0,0.00030958,2]
[325286540,1714681882045,-500.0,0.00030958,2]
[325286541,1714681882054,-3829.05,0.00030958,2]
[325286542,1714681882064,-806.95,0.00030958,2]
[325286543,1714681882073,-500.0,0.00030958,2]
[325286544,1714681882083,-500.0,0.00030958,2]
[325286545,1714681882092,-766.65,0.00030958,2]
[325286546,1714681882101,-3469.31,0.00030958,2]
[325286547,1714681882111,-535.96,0.00030958,2]
[325286548,1714681882121,-855.72,0.00030958,2]
[325286549,1714681882130,-500.0,0.00030958,2]
[325286550,1714681882139,-2000.23,0.00030958,2]
[325286551,1714681882149,-26810.66,0.00030958,2]
[325286552,1714681882158,-500.0,0.00030958,2]
[325286553,1714681882167,-500.0,0.00030958,2]
[325286554,1714681882177,-725.25,0.00030958,2]
[325286555,1714681882186,-708.4,0.00030958,2]
[325286556,1714681882195,-589.65,0.00030958,2]
[325286557,1714681882204,-500.0,0.00030958,2]
[325286558,1714681882213,-3336.0,0.00030958,2]
[325286559,1714681882223,-500.0,0.00030958,2]
[325286560,1714681882232,-500.0,0.00030958,2]
[325286561,1714681882243,-500.0,0.00030958,2]
[325286562,1714681882252,-1783.33,0.00030958,2]
[325286563,1714681882262,-500.0,0.00030958,2]
[325286564,1714681882271,-1841.46,0.00030958,2]
[325286565,1714681882281,-797.22,0.00030958,2]
[325286566,1714681882290,-846.64,0.00030958,2]
[325286567,1714681882300,-1179.4,0.00030958,2]
[325286568,1714681882309,-500.0,0.00030958,2]
[325286569,1714681882319,-500.0,0.00030958,2]
[325286570,1714681882328,-1471.45,0.00030958,2]
[325286571,1714681882337,-1119.04,0.00030958,2]
[325286572,1714681882346,-500.0,0.00030958,2]
[325286573,1714681882355,-1703.54,0.00030958,2]
[325286574,1714681882365,-1255.28,0.00030958,2]
[325286575,1714681882374,-3798.64,0.00030958,2]
[325286576,1714681882383,-515.37,0.00030958,2]
[325286577,1714681882392,-652.09,0.00030958,2]
[325286578,1714681882402,-500.0,0.00030958,2]
[325286579,1714681882411,-725.75,0.00030958,2]
[325286580,1714681882421,-1029.14,0.00030958,2]
[325286581,1714681882430,-503.32,0.00030958,2]
[325286582,1714681882445,-500.0,0.00030958,2]
[325286583,1714681882454,-500.0,0.00030958,2]
[325286584,1714681882463,-2728.92,0.00030958,2]
[325286585,1714681882472,-804.64,0.00030958,2]
[325286586,1714681882483,-500.0,0.00030958,2]
[325286587,1714681882492,-1049.87,0.00030958,2]
[325286588,1714681882501,-688.71,0.00030958,2]
[325286589,1714681882511,-488.97717171,0.00030958,2]
[325286590,1714681882522,-500.0,0.00030958,2]
[325286591,1714681882532,-500.0,0.00030958,2]
[325286592,1714681882542,-500.0,0.00030958,2]
[325286593,1714681882551,-704.48,0.00030958,2]
[325286594,1714681882561,-500.0,0.00030958,2]
[325286595,1714681882571,-579.93,0.00030958,2]
[325286596,1714681882580,-593.06,0.00030958,2]
[325286597,1714681882590,-500.0,0.00030958,2]
[325286598,1714681882599,-1418.35,0.00030958,2]
[325286599,1714681882609,-500.0,0.00030958,2]
[325286600,1714681882619,-18547.04,0.00030958,2]
[325286601,1714681882628,-514.47,0.00030958,2]
[325286602,1714681882637,-500.0,0.00030958,2]
[325286603,1714681882647,-3999.83,0.00030958,2]
[325286604,1714681882657,-2984.02,0.00030958,2]
[325286605,1714681882666,-500.0,0.00030958,2]
[325286606,1714681882675,-665.85,0.00030958,2]
[325286607,1714681882685,-1820.79,0.00030958,2]
[325286608,1714681882696,-705.23,0.00030958,2]
[325286609,1714681882705,-567.84,0.00030958,2]
[325286610,1714681882715,-500.0,0.00030958,2]
[325286611,1714681882725,-1231.73,0.00030958,2]
[325286612,1714681882734,-2731.6,0.00030958,2]
[325286613,1714681882744,-1199.56,0.00030958,2]
[325286614,1714681882753,-500.0,0.00030958,2]
[325286615,1714681882763,-151.0,0.00030958,7]
[325286616,1714681882772,-500.0,0.00030958,2]
[325286617,1714681882781,-248.705949,0.00030958,7]
[325286618,1714681882791,-1106.26,0.00030958,2]
[325286619,1714681882800,-3381.03,0.00030958,2]
[325286620,1714681882809,-2850.76,0.00030958,2]
[325286621,1714681882819,-500.0,0.00030958,2]
[325286622,1714681882829,-500.0,0.00030958,2]
[325286623,1714681882838,-500.0,0.00030958,2]
[325286624,1714681882847,-2495.95,0.00030958,2]
[325286625,1714681882857,-1687.52,0.00030958,2]
[325286626,1714681882867,-45074.22,0.00030958,2]
[325286627,1714681882876,-2424.92,0.00030958,2]
[325286628,1714681882885,-807.09,0.00030958,2]
[325286629,1714681882894,-839.03,0.00030958,2]
[325286630,1714681882904,-2093.21,0.00030958,2]
[325286631,1714681882914,-1346.03,0.00030958,2]
[325286632,1714681882923,-504.4,0.00030958,2]
[325286633,1714681882932,-1199.24,0.00030958,2]
[325286634,1714681882944,-886.13,0.00030958,2]
[325286635,1714681882953,-8317.35,0.00030958,2]
[325286636,1714681882964,-2084.29,0.00030958,2]
[325286637,1714681882974,-500.0,0.00030958,2]
[325286638,1714681882986,-591.52,0.00030958,2]
[325286639,1714681882998,-634.97,0.00030958,2]
[325286640,1714681883009,-500.0,0.00030958,2]
[325286641,1714681883019,-500.0,0.00030958,2]
[325286642,1714681883028,-500.0,0.00030958,2]
[325286643,1714681883037,-503.13,0.00030958,2]
[325286644,1714681883047,-500.0,0.00030958,2]
[325286645,1714681883056,-761.55,0.00030958,2]
[325286646,1714681883066,-500.0,0.00030958,2]
[325286647,1714681883076,-7852.58,0.00030958,2]
[325286648,1714681883085,-942.64,0.00030958,2]
[325286649,1714681883094,-1096.47,0.00030958,2]
[325286650,1714681883103,-1033.18,0.00030958,2]
[325286651,1714681883112,-3943.59,0.00030958,2]
[325286652,1714681883122,-1086.98,0.00030958,2]